bitfinex/quotes_SOLUSD_20240626
["timestamp","ask_amount","ask_price","bid_price","bid_amount"]
[1719433438025,7.3048,136.9,136.85,7.60077425]
[1719433439005,7.3042,136.91,136.85,14.90787425]
[1719433441031,7.3042,136.91,136.85,7.60077425]
[1719433441226,7.3047,136.9,136.85,7.60077425]
[1719433442731,0.34,136.91,136.85,7.60077425]
[1719433442909,7.3053,136.89,136.85,7.60077425]
[1719433443232,17.95,136.87,136.85,7.60077425]
[1719433443807,16.1935,136.87,136.85,7.60077425]
[1719433444127,7.3072,136.85,136.84,0.04330186]
[1719433444324,7.4772,136.85,136.84,0.04330186]
[1719433445031,0.17,136.85,136.84,0.04330186]
[1719433446611,7.307,136.86,136.84,0.04330186]
[1719433447830,17.95,136.85,136.84,0.04330186]
[1719433448829,16.3635,136.87,136.84,0.04330186]
[1719433448830,23.6698,136.87,136.84,0.04330186]
[1719433449528,16.3635,136.87,136.84,0.04330186]
[1719433449829,23.4998,136.87,136.84,0.04330186]
[1719433450234,16.1935,136.87,136.84,0.04330186]
[1719433450837,23.5,136.87,136.84,0.04330186]
[1719433451237,7.4768,136.86,136.84,0.04330186]
[1719433451731,7.3068,136.86,136.84,0.04330186]
[1719433452439,16.1935,136.87,136.83,7.602033]
[1719433452735,7.3098,136.81,136.77,0.8580734]
[1719433452947,36.2195,136.84,136.77,0.8580734]
[1719433452948,7.31,136.8,136.77,0.8580734]
[1719433453121,25.26,136.8,136.77,0.8580734]
[1719433453316,25.26,136.8,136.71,71.8]
[1719433453317,0.17,136.79,136.71,3.78180121]
[1719433453623,0.17,136.79,136.66,73.60859508]
[1719433453624,0.17,136.79,136.7,18.2871]
[1719433453825,0.17,136.79,136.71,25.2646]
[1719433453826,7.3113,136.78,136.71,25.2646]
[1719433454028,7.4805,136.79,136.72,18.2851]
[1719433454215,299.5325,136.82,136.77,7.3111]
[1719433454216,256.0,136.82,136.77,7.3111]
[1719433454422,17.95,136.84,136.78,17.95]
[1719433454728,17.95,136.84,136.78,36.2269]
[1719433455040,17.95,136.84,136.78,43.5376]
[1719433455338,21.98709628,136.85,136.76,17.95]
[1719433455544,7.3078,136.84,136.77,43.5395]
[1719433455721,7.3078,136.84,136.77,25.5895]
[1719433456035,7.3078,136.84,136.77,43.5396]
[1719433456337,17.95,136.83,136.77,43.5396]
[1719433457344,17.95,136.83,136.77,25.5896]
[1719433457551,17.95,136.83,136.77,43.5396]
[1719433458138,17.95,136.83,136.77,25.5896]
[1719433458341,17.95,136.83,136.77,43.5396]
[1719433459836,21.20134985,136.86,136.8,17.95]
[1719433460035,17.95,136.92,136.81,21.9704]
[1719433460236,21.987097,136.9,136.86,17.95]
[1719433460439,25.2539,136.92,136.86,17.95]
[1719433460653,7.3039,136.92,136.86,17.95]
[1719433461016,7.3039,136.92,136.86,25.2567]
[1719433461221,7.3042,136.91,136.86,17.95]
[1719433461438,25.2537,136.92,136.86,17.95]
[1719433461636,7.3031,136.93,136.86,17.95]
[1719433461939,7.3031,136.93,136.87,17.95]
[1719433462526,7.3031,136.93,136.87,25.256]
[1719433462948,270.90073963,136.96,136.88,1.46106325]
[1719433463124,263.3017,136.96,136.89,25.2548]
[1719433463470,256.0,136.96,136.89,25.2548]
[1719433463825,263.3015,136.96,136.89,25.2548]
[1719433464317,254.64964657,136.96,136.89,17.95]
[1719433464522,254.64964657,136.96,136.75,111.45415189]
[1719433464824,7.3041,136.91,136.84,25.5765]
[1719433465345,7.3036,136.92,136.85,7.3071]
[1719433465549,7.3036,136.92,136.86,7.3066]
[1719433466823,7.4731,136.93,136.86,7.3066]
[1719433467345,25.85390848,136.95,136.85,1.18996367]
[1719433467537,7.3043,136.91,136.84,18.2689]
[1719433467724,7.3035,136.93,136.86,7.3065]
[1719433467925,0.17,136.92,136.86,7.3065]
[1719433468828,7.4736,136.92,136.86,7.3065]
[1719433469334,7.3036,136.92,136.86,7.3065]
[1719433470251,0.17,136.94,136.87,7.306]
[1719433470438,7.3033,136.93,136.86,25.5729]
[1719433471450,7.4725,136.94,136.87,8.76690058]
[1719433472648,7.303,136.93,136.87,8.76690058]
[1719433472948,7.303,136.93,136.87,7.3059]
[1719433473457,7.3058,136.88,136.81,29.2794]
[1719433473750,7.3052,136.89,136.82,8.76991278]
[1719433474049,7.3052,136.89,136.83,8.76960596]
[1719433475053,7.3052,136.89,136.83,7.3082]
[1719433475751,7.3052,136.89,136.83,8.76968663]
[1719433476267,7.3052,136.89,136.83,7.3082]
[1719433476746,7.4747,136.9,136.83,7.3082]
[1719433477048,0.17,136.9,136.83,7.3082]
[1719433477249,0.17,136.91,136.83,7.3082]
[1719433478352,7.3051,136.89,136.83,7.3082]
[1719433480152,0.17,136.88,136.82,18.2717]
[1719433480355,0.17,136.91,136.82,18.2717]
[1719433480655,7.3072,136.86,136.81,15.5345]
[1719433480953,7.3073,136.85,136.81,15.5345]
[1719433481141,7.3073,136.85,136.79,25.5855]
[1719433481337,7.3078,136.84,136.79,18.2752]
[1719433481556,7.3074,136.85,136.79,18.2752]
[1719433481764,18.2643,136.88,136.78,13.5822]
[1719433481765,33.5454,136.88,136.78,6.2714]
[1719433481934,0.17,136.87,136.78,6.2714]
[1719433482133,7.3079,136.84,136.78,6.2714]
[1719433482340,7.3079,136.84,136.78,13.5823]
[1719433482862,7.309,136.82,136.76,18.2792]
[1719433483747,7.3084,136.83,136.76,18.2792]
[1719433484375,7.3079,136.84,136.77,7.3112]
[1719433484940,7.3083,136.83,136.77,7.3112]
[1719433485176,7.76070825,136.85,136.76,18.2792]
[1719433485177,7.76070825,136.85,136.76,25.591]
[1719433485385,0.34,136.84,136.76,25.591]
[1719433485873,7.3085,136.83,136.77,7.3114]
[1719433486076,7.3085,136.83,136.76,25.591]
[1719433486280,7.3089,136.82,136.76,25.591]
[1719433486976,7.3085,136.83,136.76,25.591]
[1719433487478,7.309,136.82,136.76,25.591]
[1719433488271,7.309,136.82,136.76,18.2792]
[1719433488872,7.309,136.82,136.76,25.5911]
[1719433490958,7.930708,136.84,136.77,7.3113]
[1719433491659,7.3086,136.83,136.77,7.3113]
[1719433492280,7.3086,136.83,136.76,25.591]
[1719433492980,7.3089,136.82,136.76,18.2792]
[1719433493957,7.3089,136.82,136.76,25.5912]
[1719433494879,7.3085,136.83,136.76,25.5912]
[1719433497183,7.3089,136.82,136.76,25.5912]
[1719433497401,7.930708,136.84,136.73,40.436]
[1719433497682,7.3099,136.8,136.74,8.775371]
[1719433498261,7.3099,136.8,136.74,7.3129]
[1719433499663,7.3099,136.8,136.74,8.77529409]
[1719433500186,7.3095,136.81,136.75,7.3125]
[1719433500378,7.31,136.8,136.74,7.3129]
[1719433500772,7.31,136.8,136.75,17.99]
[1719433501088,25.3,136.8,136.74,7.3129]
[1719433501387,25.3,136.8,136.74,25.3029]
[1719433503386,7.311,136.78,136.73,40.436]
[1719433503682,7.311,136.78,136.73,58.426]
[1719433504394,7.3106,136.79,136.73,65.7396]
[1719433504888,7.3101,136.8,136.74,26.76561231]
[1719433505184,7.3101,136.8,136.75,17.99]
[1719433505779,25.3001,136.8,136.74,25.3031]
[1719433506688,25.3001,136.8,136.74,7.3131]
[1719433506889,25.3001,136.8,136.74,25.3031]
[1719433507803,17.99,136.79,136.73,22.153]
[1719433507964,25.3018,136.77,136.73,22.153]
[1719433508164,7.3121,136.76,136.73,15.8816]
[1719433508674,7.3121,136.76,136.71,17.99]
[1719433509598,7.3121,136.76,136.7,48.5716]
[1719433509599,0.17,136.8,136.73,17.99]
[1719433509774,7.311,136.78,136.73,17.99]
[1719433509971,7.3115,136.77,136.73,17.99]
[1719433510187,7.313,136.75,136.7,22.9697]
[1719433510392,25.3035,136.74,136.7,22.9697]
[1719433510562,7.3137,136.73,136.7,22.9697]
[1719433510765,18.2776,136.78,136.7,16.5694]
[1719433510766,25.3033,136.74,136.7,16.5694]
[1719433511387,7.3133,136.74,136.7,16.5694]
[1719433513587,7.3137,136.73,136.7,16.5694]
[1719433514301,7.3138,136.73,136.7,16.5694]
[1719433514478,41.19346495,136.78,136.67,6.258]
[1719433514479,18.2802,136.76,136.67,6.258]
[1719433514676,0.34,136.75,136.67,6.258]
[1719433514878,18.2835,136.74,136.66,15.6698]
[1719433515078,7.3162,136.69,136.66,15.6698]
[1719433515285,7.3179,136.65,136.63,0.8580734]
[1719433516078,7.3176,136.66,136.63,0.8580734]
[1719433516895,18.2888,136.7,136.63,0.8580734]
[1719433517099,0.17,136.69,136.63,0.8580734]
[1719433517272,15.1587,136.71,136.63,0.8580734]
[1719433517601,7.3154,136.7,136.63,8.1768734]
[1719433517970,7.3158,136.69,136.63,8.1768734]
[1719433518800,7.3158,136.69,136.63,0.8580734]
[1719433519173,7.3158,136.69,136.63,8.1768734]
[1719433519378,15.1587,136.71,136.63,8.1768734]
[1719433520097,7.3161,136.69,136.63,8.1768734]
[1719433520884,7.317,136.67,136.63,0.8580734]
[1719433522209,7.3175,136.66,136.63,0.8580734]
[1719433522592,18.2901,136.69,136.63,0.8580734]
[1719433522785,7.317,136.67,136.63,0.8580734]
[1719433528724,7.3174,136.66,136.63,0.8580734]
[1719433529704,7.3169,136.67,136.63,0.8580734]
[1719433531289,7.3174,136.66,136.63,0.8580734]
[1719433534211,7.3169,136.67,136.63,0.8580734]
[1719433534705,7.3182,136.65,136.63,0.8580734]
[1719433535022,25.3485,136.64,136.63,0.8580734]
[1719433537826,25.3485,136.64,136.54,36.3385]
[1719433537827,7.3209,136.6,136.54,36.3385]
[1719433538011,18.03,136.6,136.55,7.3232]
[1719433538212,7.3205,136.61,136.55,25.3532]
[1719433538550,7.3205,136.61,136.54,18.3085]
[1719433538551,46.4664,136.64,136.57,18.03]
[1719433538708,18.03,136.62,136.57,7.3222]
[1719433538912,25.3502,136.61,136.56,18.3068]
[1719433539433,7.3206,136.6,136.55,18.03]
[1719433540108,16.4664,136.64,136.56,19.4944426]
[1719433540309,7.3202,136.61,136.55,25.6303]
[1719433540502,20.0,136.63,136.56,18.03]
[1719433540704,7.3197,136.62,136.56,25.3524]
[1719433540904,7.3197,136.62,136.56,26.81673154]
[1719433541421,7.3192,136.63,136.57,22.739]
[1719433541611,33.4948,136.68,136.61,18.03]
[1719433541915,7.3175,136.66,136.6,7.3204]
[1719433542123,18.03,136.67,136.61,18.03]
[1719433542504,7.3182,136.65,136.61,18.03]
[1719433542709,7.3182,136.65,136.59,25.6236]
[1719433542908,7.3182,136.65,136.61,18.03]
[1719433543316,7.3202,136.61,136.58,6.0133]
[1719433543500,18.295,136.65,136.58,24.0433]
[1719433543699,18.295,136.65,136.58,25.5074383]
[1719433543900,7.3184,136.65,136.58,24.3168]
[1719433544199,7.3184,136.65,136.6,18.03]
[1719433544612,7.3184,136.65,136.59,7.3209]
[1719433545012,7.3185,136.64,136.58,31.6382]
[1719433546424,7.3185,136.64,136.59,1.46402197]
[1719433547008,7.3185,136.64,136.58,31.6382]
[1719433547414,18.294,136.66,136.58,6.0133]
[1719433547617,7.3192,136.63,136.58,6.0133]
[1719433548321,18.294,136.66,136.58,6.0133]
[1719433548507,0.17,136.65,136.58,6.0133]
[1719433549306,7.3199,136.62,136.58,6.0133]
[1719433550029,0.17,136.65,136.58,6.0133]
[1719433550210,7.3211,136.59,136.57,15.4169]
[1719433550410,7.3208,136.6,136.54,30.3133]
[1719433551218,36.7612,136.65,136.54,22.9895]
[1719433551403,15.4627,136.63,136.54,22.9895]
[1719433551730,7.3208,136.6,136.54,30.3132]
[1719433552028,7.3208,136.6,136.54,30.90157721]
[1719433552212,7.3201,136.61,136.55,8.78740416]
[1719433552402,7.3197,136.62,136.56,7.3227]
[1719433553119,7.3208,136.6,136.55,18.3079]
[1719433553317,7.3205,136.61,136.55,25.6311]
[1719433553544,7.3205,136.61,136.55,27.09552154]
[1719433553712,7.3205,136.61,136.55,25.6311]
[1719433553911,7.3205,136.61,136.55,18.3079]
[1719433554117,7.3207,136.6,136.55,18.3079]
[1719433554324,7.3208,136.6,136.54,30.3131]
[1719433554925,7.3202,136.61,136.55,8.78778186]
[1719433555508,7.3202,136.61,136.55,7.3233]
[1719433556035,7.3197,136.62,136.55,7.3233]
[1719433556213,7.57450749,136.66,136.58,7.3211]
[1719433556539,260.4073628,136.68,136.59,8.44931719]
[1719433556540,7.3182,136.65,136.59,8.44931719]
[1719433556836,7.3182,136.65,136.59,7.3208]
[1719433557021,7.3193,136.63,136.58,15.3616]
[1719433557228,7.3196,136.62,136.58,15.3616]
[1719433559141,7.3186,136.64,136.58,22.6832]
[1719433559321,7.3191,136.63,136.58,15.3616]
[1719433559943,7.3196,136.62,136.58,15.3616]
[1719433560442,7.3188,136.64,136.58,22.6828]
[1719433560824,7.318,136.65,136.59,7.3211]
[1719433561025,267.97970525,136.68,136.61,7.32]
[1719433561231,7.3174,136.67,136.61,7.32]
[1719433561946,7.3174,136.66,136.6,7.3204]
[1719433562620,29.69467873,136.7,136.61,18.2998]
[1719433562621,11.40557873,136.7,136.61,18.2998]
[1719433562946,7.316,136.69,136.63,7.3186]
[1719433563326,7.316,136.69,136.63,25.6161]
[1719433564149,3.83268162,136.7,136.64,23.83227511]
[1719433564150,11.14818162,136.7,136.64,23.83227511]
[1719433564348,7.3148,136.71,136.65,7.3174]
[1719433564536,7.3153,136.7,136.64,23.83257511]
[1719433564850,7.3147,136.71,136.65,8.78100781]
[1719433565226,7.3154,136.7,136.64,15.0507]
[1719433566049,7.316,136.72,136.65,18.2944]
[1719433566222,7.3149,136.71,136.65,31.9564]
[1719433566633,7.3153,136.7,136.65,6.3442]
[1719433567244,7.3149,136.71,136.65,6.3442]
[1719433568142,7.3153,136.7,136.65,6.3442]
[1719433568341,7.3159,136.69,136.65,6.3442]
[1719433568928,13.20665665,136.73,136.65,6.3442]
[1719433568929,18.2868,136.72,136.65,6.3442]
[1719433569125,0.34,136.71,136.65,6.3442]
[1719433570145,7.3174,136.66,136.64,15.0507]
[1719433570650,4.17268162,136.71,136.64,15.0507]
[1719433571028,7.3165,136.68,136.64,15.0507]
[1719433572060,22.46008162,136.71,136.61,41.4205]
[1719433572260,22.46008162,136.71,136.61,23.1206]
[1719433572261,7.319,136.64,136.61,23.1206]
[1719433572432,7.319,136.63,136.61,23.1206]
[1719433573550,7.3192,136.63,136.61,16.6587]
[1719433574253,18.2954,136.65,136.58,6.2427]
[1719433574551,7.3217,136.58,136.52,28.888]
[1719433574755,7.3213,136.59,136.53,7.3242]
[1719433575131,7.3213,136.59,136.52,28.8883]
[1719433575533,7.3219,136.58,136.52,28.8883]
[1719433575732,7.3213,136.59,136.53,7.3242]
[1719433576354,0.17,136.58,136.52,0.1]
[1719433576651,7.3231,136.56,136.52,0.1]
[1719433579855,7.3218,136.58,136.52,7.4247]
[1719433580351,7.3223,136.57,136.53,15.414]
[1719433581052,7.3217,136.58,136.53,15.414]
[1719433581238,7.3223,136.57,136.53,15.414]
[1719433581438,18.3031,136.59,136.53,15.414]
[1719433581646,7.3229,136.56,136.53,15.414]
[1719433581839,7.3224,136.57,136.53,15.414]
[1719433585061,18.3018,136.6,136.53,15.414]
[1719433585357,7.3223,136.57,136.53,15.414]
[1719433587367,7.3228,136.56,136.53,15.414]
[1719433588067,7.3224,136.57,136.53,15.414]
[1719433589167,0.17,136.58,136.52,0.1]
[1719433589467,7.3231,136.56,136.52,0.1]
[1719433589759,7.3217,136.58,136.52,7.4247]
[1719433590254,7.3223,136.57,136.52,0.1]
[1719433590456,7.322,136.58,136.52,7.4248]
[1719433591962,7.3212,136.59,136.53,7.3241]
[1719433592162,7.3201,136.61,136.55,7.323]
[1719433592351,7.3197,136.62,136.55,25.6312]
[1719433592554,5.83406652,136.63,136.54,15.8426]
[1719433592753,22.12908162,136.64,136.54,15.8426]
[1719433592754,3.83268162,136.62,136.54,15.8426]
[1719433592958,7.3195,136.62,136.56,25.6284]
[1719433593160,3.83268162,136.64,136.54,23.1659]
[1719433593470,3.83268162,136.64,136.54,15.8426]
[1719433593471,18.2978,136.63,136.54,15.8426]
[1719433593770,18.3006,136.61,136.54,15.8426]
[1719433594172,0.34,136.6,136.54,15.8426]
[1719433594965,0.17,136.6,136.54,15.8426]
[1719433595165,3.83268162,136.62,136.54,15.8426]
[1719433595166,0.34,136.61,136.54,15.8426]
[1719433595373,7.3224,136.57,136.54,15.8426]
[1719433595667,7.3219,136.58,136.54,15.8426]
[1719433595869,7.3209,136.6,136.54,15.8426]
[1719433596173,7.321,136.6,136.54,41.475]
[1719433597567,7.3201,136.61,136.55,7.3233]
[1719433597760,3.83268162,136.62,136.54,34.1513]
[1719433598467,11.15258162,136.62,136.56,7.3223]
[1719433598671,7.3193,136.63,136.57,7.322]
[1719433599251,7.3187,136.64,136.58,7.3216]
[1719433599652,7.3187,136.64,136.59,1.4639952]
[1719433600753,3.83268162,136.65,136.57,22.6574]
[1719433601156,7.3196,136.62,136.57,22.6574]
[1719433601358,7.3191,136.63,136.57,29.9795]
[1719433602783,3.83268162,136.65,136.57,22.6574]
[1719433602784,18.2965,136.64,136.57,22.6574]
[1719433602978,7.3213,136.59,136.57,22.6574]
[1719433603382,7.3207,136.6,136.57,22.6574]
[1719433603680,7.3217,136.58,136.57,22.6574]
[1719433604074,7.3212,136.59,136.57,22.6574]
[1719433604760,7.3212,136.59,136.53,48.8251]
[1719433605362,7.3207,136.6,136.54,7.3237]
[1719433605982,7.3212,136.59,136.53,48.8251]
[1719433607764,18.2979,136.63,136.54,7.3236]
[1719433607765,7.3206,136.6,136.54,7.3236]
[1719433609687,7.3212,136.59,136.53,48.8251]
[1719433610485,7.3212,136.59,136.54,7.3238]
[1719433613820,7.3212,136.59,136.53,41.5009]
[1719433613821,7.3212,136.59,136.53,48.825]
[1719433615505,13.55773415,136.63,136.53,23.1911]
[1719433615712,7.3206,136.6,136.53,23.1911]
[1719433615914,7.3206,136.6,136.54,7.3238]
[1719433616206,7.3231,136.56,136.53,23.1911]
[1719433616716,7.3239,136.54,136.52,0.1]
[1719433617497,7.3234,136.55,136.52,0.1]
[1719433619824,7.323,136.56,136.52,0.1]
[1719433620399,7.3233,136.55,136.52,0.1]
[1719433620725,7.3243,136.53,136.52,0.1]
[1719433623303,7.4943,136.53,136.52,0.1]
[1719433623525,7.6643,136.53,136.52,0.1]
[1719433625423,7.325,136.52,136.5,0.8580734]
[1719433625916,7.3254,136.51,136.5,0.8580734]
[1719433626120,7.3251,136.52,136.5,0.8580734]
[1719433627511,7.3254,136.51,136.5,0.8580734]
[1719433628216,7.3264,136.5,136.45,16.3439]
[1719433628418,7.3266,136.49,136.45,16.3439]
[1719433629516,0.17,136.53,136.45,34.6653]
[1719433629733,7.4952,136.52,136.46,7.3281]
[1719433630236,7.3255,136.51,136.45,41.9937]
[1719433631537,7.3265,136.5,136.45,16.3439]
[1719433632540,0.17,136.52,136.45,16.3439]
[1719433632541,7.3265,136.49,136.45,16.3439]
[1719433640646,18.08,136.48,136.45,16.3439]
[1719433641525,7.3265,136.49,136.45,16.3439]
[1719433642243,7.3261,136.5,136.45,16.3439]
[1719433642443,7.3257,136.51,136.45,23.6724]
[1719433643045,7.326,136.5,136.45,23.6724]
[1719433643654,7.326,136.5,136.45,16.3439]
[1719433645349,7.3265,136.49,136.45,16.3439]
[1719433646245,7.3271,136.48,136.45,16.3439]
[1719433648033,18.3139,136.51,136.45,16.3439]
[1719433648034,7.3267,136.49,136.45,16.3439]
[1719433648240,18.08,136.49,136.45,16.3439]
[1719433648941,7.3252,136.52,136.46,13.3308]
[1719433649251,13.29475427,136.53,136.47,7.3275]
[1719433649252,7.3246,136.53,136.47,7.3275]
[1719433649849,7.3249,136.52,136.46,49.7307]
[1719433650040,7.3249,136.52,136.47,18.08]
[1719433650240,7.3249,136.52,136.46,31.6507]
[1719433650453,7.3249,136.52,136.46,49.7307]
[1719433650936,7.3256,136.51,136.46,6.0027]
[1719433651129,3.83268162,136.54,136.46,6.0027]
[1719433651326,3.83268162,136.54,136.46,24.0827]
[1719433652032,18.4811,136.53,136.46,6.0027]
[1719433652348,4.00268162,136.52,136.46,6.0027]
[1719433652532,7.3276,136.47,136.46,6.0027]
[1719433652945,7.3272,136.48,136.46,6.0027]
[1719433653254,22.31618162,136.52,136.45,16.3439]
[1719433653255,7.3276,136.47,136.45,16.3439]
[1719433653554,7.3271,136.48,136.45,16.3439]
[1719433653848,4.00268162,136.52,136.45,16.3439]
[1719433654056,7.3263,136.5,136.45,16.3439]
[1719433655562,7.3265,136.49,136.45,16.3439]
[1719433656960,7.3271,136.48,136.45,16.3439]
[1719433659058,7.3266,136.49,136.45,16.3439]
[1719433659455,7.3262,136.5,136.45,16.3439]
[1719433660140,7.3266,136.49,136.45,16.3439]
[1719433663648,3.83268162,136.52,136.45,34.6655]
[1719433663852,18.08,136.51,136.46,25.408]
[1719433664154,21.91268162,136.52,136.47,7.3275]
[1719433665155,29.23758162,136.52,136.47,7.3275]
[1719433666752,11.15758162,136.52,136.46,25.4079]
[1719433668047,7.3255,136.51,136.46,18.08]
[1719433668248,7.3255,136.51,136.46,25.4081]
[1719433668968,11.15778162,136.52,136.46,25.4081]
[1719433669169,3.83268162,136.52,136.45,16.3439]
[1719433669463,7.3262,136.5,136.45,16.3439]
[1719433669966,7.3256,136.51,136.45,16.3439]
[1719433670352,7.3256,136.51,136.45,23.6725]
[1719433671070,7.326,136.5,136.45,16.3439]
[1719433671280,3.83268162,136.54,136.45,16.3439]
[1719433671456,7.3244,136.53,136.46,36.4002]
[1719433671769,22.14248162,136.54,136.45,16.3439]
[1719433671958,7.3252,136.52,136.46,7.328]
[1719433672151,18.08,136.51,136.46,7.328]
[1719433673072,7.3245,136.53,136.47,7.3275]
[1719433673258,7.3249,136.52,136.46,25.4081]
[1719433675451,3.83268162,136.54,136.48,6.5171]
[1719433675651,3.83268162,136.54,136.49,33.9829]
[1719433675847,25.4036,136.55,136.49,41.3093]
[1719433676551,7.3239,136.54,136.49,15.9029]
[1719433676748,7.3239,136.54,136.49,23.2294]
[1719433678372,7.3235,136.55,136.49,23.2294]
[1719433678574,11.15498162,136.57,136.51,7.3252]
[1719433678776,3.83268162,136.57,136.52,25.4046]
[1719433678963,7.3213,136.59,136.54,16.194]
[1719433679158,3.83268162,136.61,136.55,7.3231]
[1719433679469,21.91268162,136.61,136.55,18.08]
[1719433679681,18.08,136.6,136.54,16.194]
[1719433679851,7.3216,136.59,136.54,34.274]
[1719433680250,7.3216,136.59,136.54,16.194]
[1719433680476,7.3216,136.59,136.54,34.274]
[1719433681655,7.3216,136.59,136.54,41.5978]
[1719433682072,3.83268162,136.61,136.54,41.5978]
[1719433682073,3.83268162,136.61,136.55,25.4031]
[1719433682262,3.83268162,136.61,136.57,18.08]
[1719433682462,3.83268162,136.61,136.57,25.4022]
[1719433682773,7.3193,136.63,136.57,25.4022]
[1719433682972,7.3193,136.63,136.58,6.0796]
[1719433683279,3.83268162,136.64,136.6,34.3624]
[1719433683973,18.2945,136.68,136.61,18.08]
[1719433683974,7.3174,136.66,136.61,18.08]
[1719433684279,7.3174,136.66,136.62,18.08]
[1719433684672,7.3174,136.66,136.6,23.6026]
[1719433684891,3.83268162,136.68,136.6,16.2824]
[1719433685176,7.3183,136.65,136.6,16.2824]
[1719433686553,7.3176,136.66,136.6,23.603]
[1719433689587,3.83268162,136.67,136.61,18.2997]
[1719433690092,11.14968162,136.67,136.61,25.6194]
[1719433690594,3.83268162,136.67,136.62,7.3192]
[1719433690772,11.14978162,136.67,136.61,18.2997]
[1719433691378,7.3174,136.66,136.61,18.2997]
[1719433691970,3.83268162,136.67,136.62,7.3195]
[1719433692576,3.83268162,136.67,136.63,7.3188]
[1719433692785,267.78579942,136.69,136.63,7.3188]
[1719433692977,261.96544657,136.69,136.64,7.3184]
[1719433693200,254.64964657,136.69,136.64,13.4917]
[1719433693776,261.96544657,136.69,136.64,6.1733]
[1719433693975,3.83268162,136.7,136.65,7.3176]
[1719433694180,11.14798162,136.7,136.64,13.4916]
[1719433694382,3.83268162,136.7,136.64,6.1733]
[1719433694776,7.3163,136.68,136.64,6.1733]
[1719433695478,7.316,136.69,136.64,6.1733]
[1719433695675,7.316,136.69,136.64,13.4917]
[1719433696196,3.83268162,136.7,136.65,7.3178]
[1719433696692,3.83268162,136.7,136.66,7.3174]
[1719433696896,5.93854954,136.72,136.65,41.5097]
[1719433697075,11.14698162,136.72,136.66,7.3172]
[1719433697278,7.3148,136.71,136.65,41.5097]
[1719433697477,3.83268162,136.72,136.65,34.192]
[1719433697693,7.3151,136.71,136.65,41.5099]
[1719433698295,7.3153,136.7,136.65,34.192]
[1719433698975,7.3148,136.71,136.65,41.5098]
[1719433699495,3.83268162,136.72,136.65,41.5098]
[1719433699496,7.3167,136.68,136.65,15.8973]
[1719433699694,7.316,136.69,136.64,6.1733]
[1719433700395,7.3163,136.68,136.64,6.1733]
[1719433701809,22.12118162,136.7,136.62,15.0717]
[1719433701983,7.3175,136.66,136.62,15.0717]
[1719433702603,0.34,136.69,136.62,15.0717]
[1719433702604,18.2912,136.68,136.62,15.0717]
[1719433702990,7.3181,136.65,136.62,15.0717]
[1719433703185,34.8501,136.68,136.6,6.5381]
[1719433703506,7.3192,136.63,136.58,16.2128]
[1719433703692,7.3186,136.64,136.58,23.5343]
[1719433704289,7.3176,136.66,136.6,7.3206]
[1719433704601,34.8501,136.68,136.59,7.321]
[1719433704602,18.04,136.64,136.59,7.321]
[1719433705201,7.3187,136.64,136.58,41.8382]
[1719433705804,7.3181,136.65,136.59,7.3211]
[1719433705991,7.3185,136.64,136.59,7.3211]
[1719433706787,7.3185,136.64,136.58,41.8381]
[1719433709203,7.3191,136.63,136.58,34.5165]
[1719433710412,7.3185,136.64,136.58,41.8381]
[1719433714221,7.3185,136.64,136.59,1.37461151]
[1719433715225,7.318,136.65,136.59,8.69571151]